fUSD/lending_fUSD_20250101
["ID","MTS","AMOUNT","RATE_DAILY","PERIOD"]
[347338596,1735704649158,-17846.8,0.00011053,2]
[347338597,1735704649167,-500.0,0.00011053,2]
[347338598,1735704649178,-500.0,0.00011053,2]
[347338599,1735704649188,-469.23704267,0.00011053,2]
[347338600,1735704649197,-2182.37,0.00011053,2]
[347338601,1735704649206,-500.0,0.00011053,2]
[347338602,1735704649216,-627.71,0.00011053,2]
[347338603,1735704649225,-500.0,0.00011053,2]
[347338604,1735704649234,-1037.78,0.00011053,2]
[347338605,1735704649244,-3258.51,0.00011053,2]
[347338606,1735704649255,-500.0,0.00011053,2]
[347338607,1735704649264,-500.0,0.00011053,2]
[347338608,1735704649274,-1674.66,0.00011053,2]
[347338609,1735704649283,-618.61,0.00011053,2]
[347338610,1735704649292,-500.0,0.00011053,2]
[347338611,1735704649302,-1199.25,0.00011053,2]
[347338612,1735704649312,-2114.66,0.00011053,2]
[347338613,1735704649321,-500.0,0.00011053,2]
[347338614,1735704649598,-626.73,0.00011053,2]
[347338615,1735704649645,-794.49,0.00011053,2]
[347338616,1735704649656,-1566.15,0.00011053,2]
[347338617,1735704649665,-500.0,0.00011053,2]
[347338618,1735704649675,-782.35,0.00011053,2]
[347338619,1735704649685,-500.0,0.00011053,2]
[347338620,1735704649695,-3104.56,0.00011053,2]
[347338621,1735704649704,-1212.16,0.00011053,2]
[347338622,1735704649714,-500.0,0.00011053,2]
[347338623,1735704649724,-622.45,0.00011053,2]
[347338624,1735704649733,-634.84,0.00011053,2]
[347338625,1735704649742,-2324.19,0.00011053,2]
[347338626,1735704649751,-1004.4,0.00011053,2]
[347338627,1735704649760,-661.27,0.00011053,2]
[347338628,1735704649770,-3060.05,0.00011053,2]
[347338629,1735704649780,-500.0,0.00011053,2]
[347338630,1735704649789,-3478.66,0.00011053,2]
[347338631,1735704649798,-1044.32,0.00011053,2]
[347338632,1735704649808,-694.2,0.00011053,2]
[347338633,1735704649817,-500.0,0.00011053,2]
[347338634,1735704649826,-1740.24,0.00011053,2]
[347338635,1735704649841,-1405.58,0.00011053,2]
[347338636,1735704649852,-500.0,0.00011053,2]
[347338637,1735704649862,-1050.73,0.00011053,2]
[347338638,1735704649871,-500.0,0.00011053,2]
[347338639,1735704649881,-2245.94,0.00011053,2]
[347338640,1735704649890,-500.0,0.00011053,2]
[347338641,1735704649900,-989.91,0.00011053,2]
[347338642,1735704649911,-2095.37,0.00011053,2]
[347338643,1735704649920,-2538.39,0.00011053,2]
[347338644,1735704649930,-546.2,0.00011053,2]
[347338645,1735704649939,-698.2,0.00011053,2]
[347338646,1735704649949,-3126.89,0.00011053,2]
[347338647,1735704649959,-396.45224069,0.00011053,2]
[347338648,1735704649969,-500.0,0.00011053,2]
[347338649,1735704649981,-949.07,0.00011053,2]
[347338650,1735704649990,-500.0,0.00011053,2]
[347338651,1735704650001,-1309.08,0.00011053,2]
[347338652,1735704650011,-1835.82,0.00011053,2]
[347338653,1735704650021,-500.0,0.00011053,2]
[347338654,1735704650032,-4252.07,0.00011053,2]
[347338655,1735704650043,-1005.83,0.00011053,2]
[347338656,1735704650052,-500.0,0.00011053,2]
[347338657,1735704650062,-500.0,0.00011053,2]
[347338658,1735704650072,-2285.91,0.00011053,2]
[347338659,1735704650082,-500.0,0.00011053,2]
[347338660,1735704650092,-500.0,0.00011053,2]
[347338661,1735704650102,-500.0,0.00011053,2]
[347338662,1735704650112,-1885.7,0.00011053,2]
[347338663,1735704650121,-1206.57,0.00011053,2]
[347338664,1735704650131,-2774.73,0.00011053,2]
[347338665,1735704650141,-738.49,0.00011053,2]
[347338666,1735704650153,-158.99093119,0.00011053,2]
[347338667,1735704650162,-2422.45,0.00011053,2]
[347338668,1735704650172,-1044.77,0.00011053,2]
[347338669,1735704650181,-298.33621088,0.00011053,2]
[347338670,1735704650191,-3737.14,0.00011053,2]
[347338671,1735704650200,-602.71,0.00011053,2]
[347338672,1735704650210,-1464.3,0.00011053,2]
[347338673,1735704650219,-1053.79,0.00011053,2]
[347338674,1735704650230,-500.0,0.00011053,2]
[347338675,1735704650239,-500.0,0.00011053,2]
[347338676,1735704650250,-3897.53,0.00011053,2]
[347338677,1735704650261,-568.91,0.00011053,2]
[347338678,1735704650271,-500.0,0.00011053,2]
[347338679,1735704650281,-500.0,0.00011053,2]
[347338680,1735704650291,-3271.58383683,0.00011053,2]
[347338681,1735704650311,-409.73211,0.00011053,2]
[347338682,1735704650322,-328.68581002,0.00011053,2]
[347338683,1735704650345,-1277.68824315,0.00011053,2]
[347338684,1735704650355,-1439.7,0.00011053,2]
[347338685,1735704650364,-1460.88,0.00011053,2]
[347338686,1735704650376,-2735.96,0.00011053,2]
[347338687,1735704650386,-533.45,0.00011053,2]
[347338688,1735704650396,-574.32175685,0.00011053,2]
[347338689,1735704650408,-153.04824315,0.00011053,2]
[347338690,1735704650417,-192.23058696,0.00011053,2]
[347338691,1735704650430,-576.70999178,0.00011053,2]
[347338692,1735704650443,-75.37942126,0.00011053,2]
[347338693,1735704650453,-500.0,0.00011053,2]
[347338694,1735704650463,-529.51241796,0.00011053,2]
[347338695,1735704650483,-732.70758204,0.00011053,2]
[347338696,1735704650494,-5702.31,0.00011053,2]
[347338697,1735704650504,-500.0,0.00011053,2]
[347338698,1735704650513,-500.0,0.00011053,2]
[347338699,1735704650524,-843.62,0.00011053,2]
[347338700,1735704650534,-1455.21952226,0.00011053,2]
[347338701,1735704650567,-1063.64047774,0.00011053,2]
[347338702,1735704650576,-2480.56,0.00011053,2]
[347338703,1735704650586,-1677.93,0.00011053,2]
[347338704,1735704650597,-947.38,0.00011053,2]
[347338705,1735704650607,-500.0,0.00011053,2]
[347338706,1735704650617,-3921.04,0.00011053,2]
[347338707,1735704650627,-500.0,0.00011053,2]
[347338708,1735704650637,-1042.05,0.00011053,2]
[347338709,1735704650646,-2856.79,0.00011053,2]
[347338710,1735704650657,-500.0,0.00011053,2]
[347338711,1735704650666,-2598.62,0.00011053,2]
[347338712,1735704650676,-2163.29,0.00011053,2]
[347338713,1735704650686,-500.0,0.00011053,2]
[347338714,1735704650695,-500.0,0.00011053,2]
[347338715,1735704650705,-3484.43,0.00011053,2]
[347338716,1735704650714,-1282.69,0.00011053,2]
[347338717,1735704650723,-500.0,0.00011053,2]
[347338718,1735704650733,-2291.91,0.00011053,2]
[347338719,1735704650742,-500.0,0.00011053,2]
[347338720,1735704650752,-500.0,0.00011053,2]
[347338721,1735704650762,-3429.1,0.00011053,2]
[347338722,1735704650771,-500.0,0.00011053,2]
[347338723,1735704650781,-1694.06,0.00011053,2]
[347338724,1735704650790,-598.07,0.00011053,2]
[347338725,1735704650800,-1012.19,0.00011053,2]
[347338726,1735704650810,-3149.95,0.00011053,2]
[347338727,1735704650819,-3570.07,0.00011053,2]
[347338728,1735704650829,-500.0,0.00011053,2]
[347338729,1735704650838,-557.65,0.00011053,2]
[347338730,1735704650848,-500.0,0.00011053,2]
[347338731,1735704650858,-8235.31,0.00011053,2]
[347338732,1735704650868,-500.0,0.00011053,2]
[347338733,1735704650878,-500.0,0.00011053,2]
[347338734,1735704650887,-3018.81,0.00011053,2]
[347338735,1735704650897,-577.73,0.00011053,2]
[347338736,1735704650907,-534.72,0.00011053,2]
[347338737,1735704650916,-576.41,0.00011053,2]
[347338738,1735704650925,-553.11,0.00011053,2]
[347338739,1735704650935,-500.0,0.00011053,2]
[347338740,1735704650945,-500.0,0.00011053,2]
[347338741,1735704650955,-567.72,0.00011053,2]
[347338742,1735704650965,-808.27,0.00011053,2]
[347338743,1735704650975,-959.2,0.00011053,2]
[347338744,1735704650985,-9127.96,0.00011053,2]
[347338745,1735704650994,-500.0,0.00011053,2]
[347338746,1735704651003,-500.0,0.00011053,2]
[347338747,1735704651013,-29659.12,0.00011053,2]
[347338748,1735704651024,-4870.73,0.00011053,2]
[347338749,1735704651035,-500.0,0.00011053,2]
[347338750,1735704651044,-723.18,0.00011053,2]
[347338751,1735704651055,-2488.07,0.00011053,2]
[347338752,1735704651065,-736.06,0.00011053,2]
[347338753,1735704651075,-2392.12,0.00011053,2]
[347338754,1735704651085,-500.0,0.00011053,2]
[347338755,1735704651097,-8810.3,0.00011053,2]
[347338756,1735704651106,-2386.84,0.00011053,2]
[347338757,1735704651118,-537.77,0.00011053,2]
[347338758,1735704651128,-955.85,0.00011053,2]
[347338759,1735704651138,-755.39,0.00011053,2]
[347338760,1735704651147,-500.0,0.00011053,2]
[347338761,1735704651159,-520.74,0.00011053,2]
[347338762,1735704651171,-2425.99,0.00011053,2]
[347338763,1735704651193,-2301.95,0.00011053,2]
[347338764,1735704651204,-961.54,0.00011053,2]
[347338765,1735704651214,-1376.07,0.00011053,2]
[347338766,1735704651224,-16562.93,0.00011053,2]
[347338767,1735704651234,-3132.06,0.00011053,2]
[347338768,1735704651244,-500.0,0.00011053,2]
[347338769,1735704651254,-500.0,0.00011053,2]
[347338770,1735704651264,-3106.14,0.00011053,2]
[347338771,1735704651274,-3389.92,0.00011053,2]
[347338772,1735704651284,-21167.79,0.00011053,2]
[347338773,1735704651293,-973.0,0.00011054,2]
[347338774,1735704651303,-489.67315781,0.00011054,2]
[347338775,1735704651313,-500.0,0.00011054,2]
[347338776,1735704651323,-500.0,0.00011054,2]
[347338777,1735704651332,-500.0,0.00011054,2]
[347338778,1735704651342,-500.0,0.00011054,2]
[347338779,1735704651355,-500.0,0.00011054,2]
[347338780,1735704651364,-500.0,0.00011054,2]
[347338781,1735704651374,-500.0,0.00011054,2]
[347338782,1735704651384,-500.0,0.00011054,2]
[347338783,1735704651393,-500.0,0.00011054,2]
[347338784,1735704651403,-500.0,0.00011054,2]
[347338785,1735704651415,-500.0,0.00011054,2]
[347338786,1735704651426,-500.0,0.00011054,2]
[347338787,1735704651436,-500.0,0.00011054,2]
[347338788,1735704651445,-500.0,0.00011054,2]
[347338789,1735704651455,-500.0,0.00011054,2]
[347338790,1735704651467,-340.2323374,0.00011054,2]
[347338791,1735704651477,-500.0,0.00011054,2]
[347338792,1735704651488,-500.0,0.00011054,2]
[347338793,1735704651497,-500.0,0.00011054,2]
[347338794,1735704651507,-500.0,0.00011054,2]
[347338795,1735704651516,-240.01000346,0.00011054,2]
[347338796,1735704651526,-500.0,0.00011054,2]
[347338797,1735704651535,-500.0,0.00011054,2]
[347338798,1735704651545,-500.0,0.00011054,2]
[347338799,1735704651557,-500.0,0.00011054,2]
[347338800,1735704651566,-500.0,0.00011054,2]
[347338801,1735704651576,-500.0,0.00011054,2]
[347338802,1735704651586,-500.0,0.00011054,2]
[347338803,1735704651597,-500.0,0.00011054,2]
[347338804,1735704651606,-500.0,0.00011054,2]
[347338805,1735704651616,-500.0,0.00011054,2]
[347338806,1735704651627,-500.0,0.00011054,2]
[347338807,1735704651636,-300.0,0.00011054,2]
[347338808,1735704651646,-500.0,0.00011054,2]
[347338809,1735704651656,-500.0,0.00011054,2]
[347338810,1735704651666,-500.0,0.00011054,2]
[347338811,1735704651675,-500.0,0.00011054,2]
[347338812,1735704651692,-500.0,0.00011054,2]
[347338813,1735704651701,-500.0,0.00011054,2]
[347338814,1735704651712,-500.0,0.00011054,2]
[347338815,1735704651722,-500.0,0.00011054,2]
[347338816,1735704651732,-500.0,0.00011054,2]
[347338817,1735704651742,-500.0,0.00011054,2]
[347338818,1735704651752,-500.0,0.00011054,2]
[347338819,1735704651762,-551.19036395,0.00011054,2]
[347338820,1735704651772,-500.0,0.00011054,2]
[347338821,1735704651783,-500.0,0.00011054,2]
[347338822,1735704651793,-500.0,0.00011054,2]
[347338823,1735704651803,-500.0,0.00011054,2]
[347338824,1735704651813,-500.0,0.00011054,2]
[347338825,1735704651823,-561.57216765,0.00011054,2]
[347338826,1735704651833,-364.74276937,0.00011054,2]
[347338827,1735704651843,-500.0,0.00011054,2]
[347338828,1735704651854,-500.0,0.00011054,2]
[347338829,1735704651864,-500.0,0.00011054,2]
[347338830,1735704651874,-500.0,0.00011054,2]
[347338831,1735704651884,-500.0,0.00011054,2]
[347338832,1735704651894,-500.0,0.00011054,2]
[347338833,1735704651904,-2121.23,0.00011054,2]
[347338834,1735704651914,-4534.59,0.00011054,2]
[347338835,1735704651924,-4895.9,0.00011054,2]
[347338836,1735704651934,-5391.73,0.00011054,2]
[347338837,1735704651944,-985.28,0.00011054,2]
[347338838,1735704651954,-1589.77,0.00011054,2]
[347338839,1735704651964,-1954.47,0.00011054,2]
[347338840,1735704651974,-2353.44,0.00011054,2]
[347338841,1735704651983,-2851.55,0.00011054,2]
[347338842,1735704651994,-2795.23,0.00011054,2]
[347338843,1735704652003,-500.0,0.00011054,2]
[347338844,1735704652014,-1352.88,0.00011054,2]
[347338845,1735704652024,-613.5,0.00011054,2]
[347338846,1735704652034,-731.23,0.00011054,2]
[347338847,1735704652044,-3073.84,0.00011054,2]
[347338848,1735704652054,-671.25,0.00011054,2]
[347338849,1735704652064,-5313.16,0.00011054,2]
[347338850,1735704652074,-4967.43,0.00011054,2]
[347338851,1735704652084,-500.0,0.00011054,2]
[347338852,1735704652094,-5538.86,0.00011054,2]
[347338853,1735704652106,-5940.1,0.00011054,2]
[347338854,1735704652117,-1814.52,0.00011054,2]
[347338855,1735704652127,-1940.3,0.00011054,2]
[347338856,1735704652137,-2546.91,0.00011054,2]
[347338857,1735704652146,-967.97,0.00011054,2]
[347338858,1735704652157,-866.3,0.00011054,2]
[347338859,1735704652167,-500.0,0.00011054,2]
[347338860,1735704652177,-1268.15,0.00011054,2]
[347338861,1735704652187,-2821.08,0.00011054,2]
[347338862,1735704652197,-3180.39,0.00011054,2]
[347338863,1735704652207,-527.41,0.00011054,2]
[347338864,1735704652218,-14060.92,0.00011054,2]
[347338865,1735704652227,-4744.88,0.00011054,2]
[347338866,1735704652238,-3366.89,0.00011054,2]
[347338867,1735704652247,-2953.24,0.00011054,2]
[347338868,1735704652257,-7486.33,0.00011054,2]
[347338869,1735704652267,-500.0,0.00011054,2]
[347338870,1735704652277,-3149.18,0.00011054,2]
[347338871,1735704652287,-2305.76,0.00011054,2]
[347338872,1735704652296,-500.0,0.00011054,2]
[347338873,1735704652306,-4301.26,0.00011054,2]
[347338874,1735704652315,-1845.24,0.00011054,2]
[347338875,1735704652325,-500.0,0.00011054,2]
[347338876,1735704652334,-2571.38,0.00011054,2]
[347338877,1735704652344,-3302.68,0.00011054,2]
[347338878,1735704652356,-5886.91,0.00011054,2]
[347338879,1735704652366,-500.0,0.00011054,2]
[347338880,1735704652375,-5182.28,0.00011054,2]
[347338881,1735704652385,-2241.58,0.00011054,2]
[347338882,1735704652394,-16446.21,0.00011054,2]
[347338883,1735704652404,-2492.2,0.00011054,2]
[347338884,1735704652413,-662.87,0.00011054,2]
[347338885,1735704652423,-3371.89,0.00011054,2]
[347338886,1735704652433,-5598.96,0.00011054,2]
[347338887,1735704652443,-2253.5,0.00011054,2]
[347338888,1735704652453,-2751.63,0.00011054,2]
[347338889,1735704652463,-4655.86436092,0.00011054,2]
[347338890,1735704652480,-301.39563908,0.00011054,2]
[347338891,1735704652490,-500.0,0.00011054,2]
[347338892,1735704652499,-3442.0043609,0.00011054,2]
[347338893,1735704652512,-2059.7656391,0.00011054,2]
[347338894,1735704652522,-3799.27,0.00011054,2]
[347338895,1735704652531,-5329.71,0.00011054,2]
[347338896,1735704652541,-4270.81,0.00011054,2]
[347338897,1735704652551,-999.99,0.00011055,2]
[347338898,1735704652564,-2927.72,0.00011055,2]
[347338899,1735704652574,-150.99,0.00011055,2]
[347338900,1735704652583,-393.08058499,0.00011055,2]
[347338901,1735704652594,-15225.66377666,0.00011055,2]
[347338902,1735704652608,-7858.73569701,0.00011055,2]
[347338903,1735704652620,-3622.53010337,0.00011055,2]
[347338904,1735704683662,625.39,8.246e-05,2]
[347338905,1735704683868,625.39,0.0001051,2]
[347338906,1735704789283,336.54,0.00010137,2]
[347338908,1735704809283,500.0,0.00011,2]
[347338909,1735704837625,166.6691,0.0001094,2]
[347338910,1735704866060,150.0,0.00010824,2]
[347338911,1735704866121,150.0,0.00010876,2]
[347338912,1735704866255,150.0,0.00011005,2]
[347338913,1735704866335,150.0,0.00010856,2]
[347338914,1735704866376,150.0,0.00010804,2]
[347338915,1735704866428,150.0,0.00010801,2]
[347338916,1735704866479,150.0,0.00010981,2]
[347338917,1735704866527,150.0,0.0001083,2]
[347338918,1735704866570,150.0,0.00010872,2]
[347338919,1735704866622,150.0,0.00010781,2]
[347338920,1735704866676,150.0,0.00010915,2]
[347338921,1735704866798,150.0,0.00010798,2]
[347338922,1735704866847,150.0,0.0001086,2]
[347338923,1735704866886,150.0,0.00010839,2]
[347338924,1735704866926,150.0,0.00010963,2]
[347338925,1735704866966,150.0,0.00010981,2]
[347338926,1735704867006,150.0,0.00011009,2]
[347338927,1735704867049,150.0,0.00010832,2]
[347338928,1735704867102,150.0,0.00010947,2]
[347338929,1735704867456,150.0,0.00010797,2]
[347338930,1735704867493,150.0,0.00010952,2]
[347338931,1735704867540,150.0,0.00010879,2]
[347338932,1735704867579,150.0,0.00010801,2]
[347338933,1735704867612,150.0,0.00010906,2]
[347338934,1735704867683,150.0,0.00010899,2]
[347338935,1735704867730,150.0,0.00011005,2]
[347338936,1735704867762,150.0,0.00011002,2]
[347338937,1735704867802,150.0,0.00010963,2]
[347338938,1735704867835,150.0,0.00010811,2]
[347338939,1735704867868,150.0,0.00011005,2]
[347338940,1735704867940,150.0,0.00010863,2]
[347338941,1735704867983,150.0,0.00010892,2]
[347338942,1735704868016,150.0,0.00010921,2]
[347338943,1735704868071,150.0,0.00010863,2]
[347338944,1735704868105,150.0,0.00010954,2]
[347338945,1735704868145,150.0,0.00010936,2]
[347338946,1735704868179,150.0,0.00010866,2]
[347338947,1735704868259,150.0,0.00010913,2]
[347338948,1735704868352,150.0,0.00011006,2]
[347338949,1735704868389,150.0,0.00010913,2]
[347338950,1735704868447,150.0,0.00010899,2]
[347338951,1735704868494,150.0,0.00010915,2]
[347338952,1735704868546,150.0,0.00010858,2]
[347338953,1735704868598,150.0,0.00010987,2]
[347338954,1735704868634,150.0,0.00010949,2]
[347338955,1735704868692,150.0,0.00010911,2]
[347338956,1735704868725,150.0,0.0001093,2]
[347338957,1735704868757,150.0,0.000109,2]
[347338958,1735704868790,150.0,0.00010806,2]
[347338959,1735704868834,150.0,0.00011012,2]
[347338960,1735704868873,150.0,0.00010847,2]
[347338961,1735704868940,150.0,0.00010785,2]
[347338962,1735704868978,150.0,0.00010976,2]
[347338963,1735704869029,150.0,0.00010919,2]
[347338964,1735704869070,150.0,0.00010916,2]
[347338965,1735704869126,150.0,0.00010895,2]
[347338966,1735704869162,150.0,0.00010887,2]
[347338967,1735704869205,150.0,0.00010885,2]
[347338968,1735704869241,150.0,0.0001098,2]
[347338969,1735704869289,150.0,0.00010969,2]
[347338970,1735704869356,150.0,0.00010909,2]
[347338971,1735704869404,150.0,0.00010787,2]
[347338972,1735704869459,150.0,0.00010891,2]
[347338973,1735704869522,150.0,0.00010974,2]
[347338974,1735704869576,150.0,0.00010914,2]
[347338975,1735704869613,150.0,0.00010895,2]
[347338976,1735704869652,150.0,0.00010977,2]
[347338977,1735704869694,150.0,0.00011009,2]
[347338978,1735704869737,150.0,0.00010889,2]
[347338979,1735704869779,150.0,0.00011001,2]
[347338980,1735704869902,150.0,0.0001086,2]
[347338981,1735704869947,150.0,0.00010854,2]
[347338982,1735704870050,150.0,0.00010845,2]
[347338983,1735704870094,150.0,0.000108,2]
[347338984,1735704870130,150.0,0.0001087,2]
[347338985,1735704870165,150.0,0.0001095,2]
[347338986,1735704870207,150.0,0.00010844,2]
[347338987,1735704871460,150.0,0.00010912,2]
[347338988,1735704871503,150.0,0.00010778,2]
[347338989,1735704871680,150.0,0.00010907,2]
[347338990,1735704871726,150.0,0.00010902,2]
[347338991,1735704871763,150.0,0.00010985,2]
[347338992,1735704871799,150.0,0.0001079,2]
[347338993,1735704871848,150.0,0.00010835,2]
[347338994,1735704872337,150.0,0.00010856,2]
[347338995,1735704872380,150.0,0.00010905,2]
[347338996,1735704872503,150.0,0.00010907,2]
[347338997,1735704872554,150.0,0.00010947,2]
[347338998,1735704872591,150.0,0.00010869,2]
[347338999,1735704872679,150.0,0.0001081,2]
[347339000,1735704872791,150.0,0.00010853,2]
[347339001,1735704872905,150.0,0.00010931,2]
[347339002,1735704872948,150.0,0.00010952,2]
[347339003,1735704873009,150.0,0.00010894,2]
[347339004,1735704873130,150.0,0.00010876,2]
[347339005,1735704873168,150.0,0.00010829,2]
[347339006,1735704873224,150.0,0.0001094,2]
[347339007,1735704873269,150.0,0.00010865,2]
[347339008,1735704873326,150.0,0.00010999,2]
[347339009,1735704873363,150.0,0.00010887,2]
[347339010,1735704873742,150.0,0.00010948,2]
[347339011,1735704873792,150.0,0.00010846,2]
[347339012,1735704873862,150.0,0.00010851,2]
[347339013,1735704873980,150.0,0.00010785,2]
[347339014,1735704874031,150.0,0.00010901,2]
[347339015,1735704874097,150.0,0.00010931,2]
[347339016,1735704874133,150.0,0.00010896,2]
[347339017,1735704874185,150.0,0.00010955,2]
[347339018,1735704874265,150.0,0.00010992,2]
[347339019,1735704874305,150.0,0.00010884,2]
[347339020,1735704874358,150.0,0.00010882,2]
[347339021,1735704874401,150.0,0.00010893,2]
[347339022,1735704874452,150.0,0.00011011,2]
[347339023,1735704874505,150.0,0.0001092,2]
[347339024,1735704874551,150.0,0.00010796,2]
[347339025,1735704874598,150.0,0.00010925,2]
[347339026,1735704874641,150.0,0.00011003,2]
[347339027,1735704874908,184.62680785,0.00010788,2]
[347339028,1735704875986,1500.0,0.00011011,2]
[347339029,1735704882690,150.0,0.00010971,2]
[347339030,1735704904473,2000.0,0.00011012,2]
[347339031,1735704907937,200.0,0.00011012,2]
[347339032,1735704907995,150.0,0.00011005,2]
[347339033,1735704908044,150.0,0.00010938,2]
[347339034,1735704908102,150.0,0.00010816,2]
[347339035,1735704911108,355.23,0.00010057,2]
[347339036,1735704922911,494.61286111,0.00010331,2]
[347339037,1735704922941,5.38713889,0.00010331,2]
[347339038,1735704923685,500.0,0.00010331,2]
[347339039,1735704924439,500.0,0.00010331,2]
[347339040,1735704926472,500.0,0.00010331,2]
[347339041,1735704927442,500.0,0.00010331,2]
[347339042,1735704927643,500.0,0.00010331,2]
[347339043,1735704928325,500.0,0.00010331,2]
[347339044,1735704929121,500.0,0.00010331,2]
[347339045,1735704929953,500.0,0.00010331,2]
[347339046,1735704930708,500.0,0.00010331,2]
[347339047,1735704931464,509.77,0.00010331,2]
[347339048,1735704935057,150.0,0.00010997,2]
[347339049,1735704935113,150.0,0.00010821,2]
[347339050,1735704935396,150.0,0.00010897,2]
[347339051,1735704935463,150.0,0.00010831,2]
[347339052,1735704935519,150.0,0.00010849,2]
[347339053,1735704935561,150.0,0.0001101,2]
[347339054,1735704935601,150.0,0.00010951,2]
[347339055,1735704935644,150.0,0.00010919,2]
[347339056,1735704935685,150.0,0.00010863,2]
[347339057,1735704935730,150.0,0.00010958,2]
[347339058,1735704935793,150.0,0.00010824,2]
[347339059,1735704935877,150.0,0.00010993,2]
[347339060,1735704935947,150.0,0.00011012,2]
[347339061,1735704936001,150.0,0.00010943,2]
[347339062,1735704936060,150.0,0.00010897,2]
[347339063,1735704936121,150.0,0.00010972,2]
[347339064,1735704936178,150.0,0.00010835,2]
[347339065,1735704937493,150.0,0.0001084,2]
[347339066,1735704937569,150.0,0.00010997,2]
[347339067,1735704937624,150.0,0.00010919,2]
[347339068,1735704937691,150.0,0.00010868,2]
[347339069,1735704937767,150.0,0.00010892,2]
[347339070,1735704937820,150.0,0.00010944,2]
[347339071,1735704937882,150.0,0.00010839,2]
[347339072,1735704937920,1500.0,0.00010988,2]
[347339073,1735704937960,150.0,0.00010986,2]
[347339074,1735704938002,150.0,0.00010796,2]
[347339075,1735704938077,1500.0,0.00010795,2]
[347339076,1735704938133,150.0,0.00010882,2]
[347339077,1735704938200,150.0,0.0001095,2]
[347339078,1735704938287,150.0,0.00010962,2]
[347339079,1735704938352,1500.0,0.00010906,2]
[347339080,1735704938390,150.0,0.00010896,2]
[347339081,1735704938452,1500.0,0.00011008,2]
[347339082,1735704938489,150.0,0.00010902,2]
[347339083,1735704938547,1500.0,0.00010903,2]
[347339084,1735704938617,150.0,0.00010845,2]
[347339085,1735704938663,150.0,0.00010881,2]
[347339086,1735704938711,150.0,0.00010905,2]
[347339087,1735704938777,150.0,0.00010887,2]
[347339088,1735704938820,150.0,0.00011009,2]
[347339089,1735704938884,150.0,0.00010843,2]
[347339090,1735704950131,166.523,0.0001076,2]
[347339096,1735705047509,150.0,0.00010887,2]
[347339097,1735705056218,643.21752223,0.00010893,2]
[347339098,1735705064054,994.0,0.00010949,2]
[347339099,1735705088005,150.0,0.0001088,2]
[347339100,1735705106479,150.0,0.00010973,2]
[347339101,1735705106546,150.0,0.00010888,2]